{"text_format":"1","workbook":"xlsx","n_sheets":1,"sheets":["فاتوره"],"not_rendered":{"charts":0,"images":0,"macros":1,"external_links":0,"defined_names":1,"comments":0,"pivot_tables":0},"unopened":[],"bounds":{"document_bytes":16777216,"sheet_cells":100000,"rows_first":2000,"rows_last":500,"rows_between":2000,"halvings":0,"cell_chars":16384,"cell_head_chars":4096},"cells_cut":0,"cells_raw":0,"read":"whole","date_system":"1900"}

{"sheet":"فاتوره","index":0,"n_rows":46,"n_cols":7,"rows_kept":46,"cut":false,"hidden":false,"merged":[[0,0,3,6],[5,0,5,2],[5,5,5,6],[6,0,6,2],[6,5,6,6],[11,4,11,6],[12,4,12,6],[36,4,36,6],[7,0,7,2],[7,5,7,6],[8,0,8,6],[9,4,9,6],[10,4,10,6]]}
[]
[]
[]
[]
[]
[{"$f":"A39","v":"2020-12-17"},null,null,null,null,{"$f":"F42","v":"بندر عبدالله الغيلان"}]
[{"$f":"A40","v":"توريد فقط"},null,null,null,null,{"$f":"E42","v":"0552506504"},"0509675432/0531384005"]
[{"$f":"A41","v":"محمد"},null,null,null,null,{"$f":"G42","v":"العقيق"},"اشبيليا"]
[]
[{"$f":"B10*C10","v":1950},{"$f":"A42","v":1950},1,null,{"$f":"C42","v":"مكيف ماندو بلس موديل 18 بارد"},"مكيف سكاي ستار ارتي فاي موديل 30 بارد اسود","مكيف سكاي ستار ارتي فاي موديل 30 بارد اسود"]
[{"$f":"C11*B11","v":3950},1975,2,null,{"$f":"C43","v":"مكيف ماندو بلس موديل 18 حار بارد"}]
[3175,3175,1,null,{"$f":"C44","v":"مكيف ماندو بلس موديل 30 حار بارد"}]
[2500,2500,1,null,{"$f":"C45","v":"مكيف جري موديل 18 حار بارد"}]
[1450,1450,1,null,{"$f":"C46","v":" مكيف ماندوموديل 12بارد"}]
[0]
[0]
[]
[]
[]
[null,null,null,"       ارقام الصيانة في خلف الفاتورة"]
[null,null,null,"         تم اختيار قدرة المكيفات حسب رغبة العميل"]
[{"$f":"SUM(A10:A21)","v":13025},null,null,"   الشركة غير مسئولة عن عيوب التركيب"]
[{"$f":"A22*15%","v":1953.75},null,null," "]
[{"$f":"A22-A23","v":11071.25},null,null," "]
[null,null,null,{"$f":"E37","v":"        عذرا الدفع مقدمــــــاً قبل التركيب"}]
[{"$f":"A23+A24","v":13025},null,{"$f":"NoToTxt(A26,\"ريال\",\"هلله\")","v":"فقط ثلاثة عشر ألف وخمسة وعشرون ريال"}]
[]
[]
[]
[null,null,null,null,null,"  "]
[]
[]
[null,null,null,null,null,"   الشركة غير مسئولة عن عيوب التركيب"]
[null,null,null,null,null,"        ضمان تركيب المكيف سنة واحدة من تاريخ الفاتورة"]
[null,null,null,null,null,"        في حالة لزوم كرسي جداري 60 ريال "]
[null,null,null,null,null,"        في حالة لزوم نحاس زيادة 70 ريال للمتر وفك المكيف القديم 100 ريال"]
[null,null,null,null,"        عذرا الدفع مقدمــــــاً قبل التركيب"]
[]
["2020-12-17"]
["توريد فقط"]
["محمد"]
[1950,1,"مكيف ماندو بلس موديل 18 بارد",null,"0552506504","بندر عبدالله الغيلان","العقيق"]
[1975,2,"مكيف ماندو بلس موديل 18 حار بارد"]
[3175,1,"مكيف ماندو بلس موديل 30 حار بارد"]
[2500,1,"مكيف جري موديل 18 حار بارد"]
[1450,1," مكيف ماندوموديل 12بارد"]